[Event "GER-ch Youth-U16 2022"]
[Site "Willingen"]
[Date "2022.06.08"]
[Round "6.4"]
[White "Foerster-Yialamas, Lucas"]
[Black "Trushko, Andrii"]
[Result "1-0"]
[ECO "B12"]
[WhiteElo "2117"]
[BlackElo "1897"]
[Annotator "TA"]
[PlyCount "65"]
[EventDate "2022.06.05"]
[EventType "swiss"]
[EventRounds "9"]
[EventCountry "GER"]
[SourceTitle "playchess.com"]
[Source "ChessBase"]
[SourceQuality "1"]
[TimeControl "40/4500+30:900+30"]

{[%evp 9,65,14,67,62,75,57,100,86,118,118,104,107,136,106,161,163,235,222,320,328,324,253,239,162,156,156,195,214,220,195,187,181,200,160,172,163,188,208,182,149,158,124,248,181,670,682,29985,29986,29984,2293,29997,29978,29978,29979,29979,29980,29995,29996]} 1. e4 {[%emt 0:00:00]} c6 {[%emt 0:00:00]} 2. d4 {[%emt 0:00:00]} d5 {[%emt 0:00:00]} 3. e5 {[%emt 0:00:00]} c5 {[%emt 0:00:00]} 4. dxc5 {[%emt 0:00:00]} e6 {[%emt 0:00:00]} 5. a3 {[%emt 0:00:00]} a5 {[%emt 0:00:00]} (5... Nc6 $11) 6. Nc3 $14 {[%emt 0:00:00] B12: Caro-Kann: Advance Variation.} (6. Bb5+ $6 Bd7 7. Nc3 Bxc5 $11) 6... Bxc5 {[%emt 0:00:00]} 7. Qg4 {[%emt 0:00:00] [#]} g6 $146 {[%emt 0:00:00]} ({Predecessor:} 7... Bf8 8. Nf3 Nh6 9. Bxh6 gxh6 10. Bd3 Nc6 11. O-O Bd7 12. Nb5 Qb6 13. c4 dxc4 14. Bxc4 {1-0 (27) Krivoborodov,E (2442)-Mufic,G (2305) Pardubice 2009}) 8. Bd3 {[%emt 0:00:00] White is better.} Nc6 {[%emt 0:00:00]} 9. Nf3 {[%emt 0:00:00]} Bd7 {[%emt 0:00:00]} 10. Qf4 {[%emt 0:00:00]} h5 {[%emt 0:00:00]} 11. Be3 {[%emt 0:00:00]} (11. Ng5 $6 Nh6 $14) 11... Bxe3 {[%emt 0:00:10]} (11... Be7 $16 {was called for.}) 12. fxe3 $18 {[%emt 0:00:00]} Nce7 {[%emt 0:07:23]} (12... Qb6 $142 13. Nb5 O-O-O 14. Nd6+ Kb8) 13. O-O-O {[%emt 0:11:05]} (13. Ng5 $6 Nh6 $16) 13... Nf5 {[%emt 0:09:27]} (13... Qb6 14. e4 (14. Ng5 Nh6) 14... Nh6) (13... Nh6 {was necessary.} 14. e4 Qb6) 14. e4 {[%emt 0:00:55]} dxe4 {[%emt 0:00:39]} 15. Nxe4 {[%emt 0:02:33]} ({Not} 15. Bxe4 Nge7 16. Bxf5 (16. Bxb7 Rb8 $11) 16... gxf5 $16) 15... Qe7 {[%emt 0:06:56]} 16. Nd4 {[%emt 0:06:55]} Kf8 {[%emt 0:08:45]} 17. Nxf5 {[%emt 0:05:56]} gxf5 {[%emt 0:02:42]} 18. Nd6 {[%emt 0:05:51]} Rh7 {[%emt 0:05:21]} 19. Be2 {[%emt 0:05:55]} ({Resist} 19. Nxb7 Bc6) 19... Bc6 {[%emt 0:04:00]} 20. Bf3 {[%emt 0:00:55]} Qc7 {[%emt 0:03:07]} 21. Rhe1 {[%emt 0:03:48]} Ne7 {[%emt 0:02:11]} 22. Qg5 {[%emt 0:01:35]} h4 {[%emt 0:08:21]} 23. Rd4 {[%emt 0:06:35]} Ng6 {[%emt 0:04:06]} 24. Qf6 {[%emt 0:01:51] Threatens to win with Bxc6.} Kg8 {[%emt 0:05:16]} 25. Rc4 {[%emt 0:04:29] White is much more active.} Ra6 {[%emt 0:01:09]} (25... Rb8 $16 26. b3 Qe7 27. Bxc6 bxc6) 26. Rd1 {[%emt 0:02:22]} Qe7 $2 {[%emt 0:01:18] [#]} (26... Ra8 27. h3 Rf8) 27. Nxb7 $1 {[%emt 0:01:39][%mdl 512] And now Rd8+ would win.} Qxb7 {[%emt 0:01:43]} (27... Qxf6 28. exf6) 28. Rd8+ {[%emt 0:01:01]} Nf8 {[%emt 0:00:02]} 29. Bxc6 {[%emt 0:00:41]} (29. Qg5+ $142 Rg7 {[#]} 30. Rxf8+ $1 {[%mdl 512]} Kxf8 31. Qd8+ Be8 32. Bxb7 Rg8 33. Rc8 Kg7 34. Bxa6) 29... Rxc6 {[%emt 0:00:42]} 30. Rxc6 {[%emt 0:00:08] White mates.} Qxc6 {[%emt 0:00:26]} 31. Qe7 {[%emt 0:00:07][%csl Gd8][%cal Re7f8]} Kg7 {[%emt 0:01:48]} 32. Rxf8 {[%emt 0:02:44]} Kg6 {[%emt 0:00:47]} 33. Rg8+ {[%emt 0:00:10] Weighted Error Value: White=0.15 (very precise) /Black=0.85} 1-0

[Event "GER-ch Youth-U16 2022"]
[Site "Willingen"]
[Date "2022.06.08"]
[Round "6.5"]
[White "Sidletskyi, Ivan"]
[Black "Rempe, Jonas"]
[Result "1-0"]
[ECO "E71"]
[WhiteElo "2084"]
[BlackElo "1856"]
[Annotator "TA"]
[PlyCount "65"]
[EventDate "2022.06.05"]
[EventType "swiss"]
[EventRounds "9"]
[EventCountry "GER"]
[SourceTitle "playchess.com"]
[Source "ChessBase"]
[SourceQuality "1"]
[TimeControl "40/4500+30:900+30"]

{[%evp 11,65,33,33,33,22,8,39,-16,4,-27,-26,-15,-26,-30,-14,-122,256,264,267,260,262,268,279,279,290,289,283,283,292,215,220,218,215,208,213,196,204,195,194,188,188,191,227,227,243,239,259,244,297,297,433,429,366,320,29998,29999]} 1. c4 {[%emt 0:00:00]} Nf6 {[%emt 0:00:00]} 2. Nc3 {[%emt 0:00:00]} g6 {[%emt 0:00:00]} 3. e4 {[%emt 0:00:00]} d6 {[%emt 0:00:00]} 4. d4 {[%emt 0:00:00]} Bg7 {[%emt 0:00:00]} 5. h3 {[%emt 0:00:00]} O-O {[%emt 0:00:00]} 6. Be3 {[%emt 0:00:00]} Nbd7 {[%emt 0:00:00]} 7. g4 {[%emt 0:00:00] E71: King's Indian: 4 e4 d6 5 h3.} a6 {[%emt 0:00:00]} 8. Nge2 {[%emt 0:07:12]} (8. Bg2) 8... c5 {[%emt 0:00:00][%cal Ob7b5] [#]} (8... b5 $5) 9. Ng3 $146 {[%emt 0:02:34]} (9. Bg2 $14) ({Predecessor:} 9. d5 b5 10. cxb5 axb5 11. Ng3 b4 12. Nb5 Ba6 13. Bc4 Qa5 14. a4 bxa3+ 15. Bd2 {0-1 (33) Mikhailovsky,V (2228)-Sapunov,E (2461) Chess.com INT 2020}) 9... Qa5 {[%emt 0:12:37][%cal Ob7b5]} 10. Qd2 {[%emt 0:06:56]} b5 {[%emt 0:10:22]} 11. cxb5 {[%emt 0:04:04]} cxd4 {[%emt 0:10:44]} 12. Bxd4 {[%emt 0:00:13]} Nc5 $1 {[%emt 0:02:23][%cal Of6e4]} 13. Bxf6 {[%emt 0:14:16]} (13. Rd1 $11) 13... Nb3 $2 {[%emt 0:18:45][%mdl 8192] Black cannot hold the game after this.} (13... Bxf6 $17 14. Nd5 Qxd2+ 15. Kxd2 Bxb2) 14. Qd1 $18 {[%emt 0:04:09]} (14. Qd5 Be6 15. Qd1 Bxf6 16. axb3 Bxc3+ 17. Ke2 Bxb3 $11) 14... Bxf6 {[%emt 0:01:41]} 15. axb3 {[%emt 0:04:28]} (15. Qxb3 $6 Be6 16. Bc4 Bxc3+ 17. bxc3 Rac8 $16) 15... Bxc3+ {[%emt 0:00:07] [#]} 16. Ke2 $1 {[%emt 0:01:20][%cal Be1e2,Be2f3,Bf3g2][%mdl 32]} ({Weaker is} 16. bxc3 Qxc3+ 17. Ke2 Bd7 $16) 16... Qxb5+ {[%emt 0:13:00]} 17. Kf3 {[%emt 0:00:17]} Qe5 {[%emt 0:00:01]} 18. bxc3 {[%emt 0:00:36]} Qxc3+ {[%emt 0:00:03]} 19. Kg2 {[%emt 0:01:00]} Be6 {[%emt 0:00:35]} 20. Rc1 {[%emt 0:01:52]} ({Don't take} 20. Rxa6 Bxb3 21. Qd3 Qxd3 22. Bxd3 Rxa6 $18) 20... Qxb3 {[%emt 0:01:45]} 21. Qxb3 {[%emt 0:00:06]} Bxb3 {[%emt 0:00:06]} 22. Bc4 {[%emt 0:01:15]} Rfb8 {[%emt 0:06:25]} 23. Rc3 {[%emt 0:00:26]} Rc8 {[%emt 0:01:28]} 24. Rhc1 {[%emt 0:04:46]} Rxc4 {[%emt 0:00:55]} 25. Rxc4 {[%emt 0:00:05]} Bxc4 {[%emt 0:00:06]} 26. Rxc4 {[%emt 0:00:02][%mdl 4096] Endgame KRN-KR} a5 {[%emt 0:00:04] [#]} 27. Ra4 $1 {[%emt 0:00:29]} e6 {[%emt 0:04:17]} 28. Nf1 {[%emt 0:01:26]} Kg7 {[%emt 0:02:16]} 29. Ne3 {[%emt 0:00:10]} Kf6 {[%emt 0:01:20]} 30. Nc4 {[%emt 0:00:28][%csl LRa5,LRd6]} d5 {[%emt 0:00:45]} (30... Ke7 {was necessary.} 31. Rxa5 Rxa5 32. Nxa5 g5) 31. e5+ {[%emt 0:00:37]} Kg5 {[%emt 0:00:00]} 32. f4+ {[%emt 0:00:37]} ({Less strong is} 32. Rxa5 Rxa5 33. Nxa5 Kf4 $18) (32. Nxa5 Kh4 33. Ra1 h5 $18) 32... Kh4 $2 {[%emt 0:00:33]} (32... Kh6 $18) 33. Nd2 {[%emt 0:00:20] Weighted Error Value: White=0.17 (very precise) /Black=0.62} 1-0

[Event "GER-ch Youth-U16 2022"]
[Site "Willingen"]
[Date "2022.06.08"]
[Round "6.6"]
[White "Jaskulski, Jan"]
[Black "Bui, Bao Anh Le"]
[Result "1/2-1/2"]
[ECO "B94"]
[WhiteElo "1727"]
[BlackElo "2127"]
[Annotator "TA"]
[PlyCount "47"]
[EventDate "2022.06.05"]
[EventType "swiss"]
[EventRounds "9"]
[EventCountry "GER"]
[SourceTitle "playchess.com"]
[Source "ChessBase"]
[SourceQuality "1"]
[TimeControl "40/4500+30:900+30"]

{[%evp 12,47,23,15,18,18,26,0,1,0,0,0,0,0,0,0,0,0,0,0,0,17,50,29,22,0,64,0,44,0,0,0,0,-52,-42,-63,-54,-145]} 1. e4 {[%emt 0:00:00]} c5 {[%emt 0:00:00]} 2. Nf3 {[%emt 0:00:00]} d6 {[%emt 0:00:00]} 3. d4 {[%emt 0:00:00]} cxd4 {[%emt 0:00:00]} 4. Nxd4 {[%emt 0:00:00]} Nf6 {[%emt 0:00:00]} 5. Nc3 {[%emt 0:00:00]} a6 {[%emt 0:00:00]} 6. Bg5 {[%emt 0:00:00]} Nbd7 {[%emt 0:00:00]} 7. Bc4 {[%emt 0:00:00] 7.Qe2 is the recent fashion.} Qb6 {[%emt 0:00:00] B94: Sicilian Najdorf: 6 Bg5 Nbd7.} 8. Bb3 {[%emt 0:00:00]} e6 {[%emt 0:00:00]} 9. Qd2 {[%emt 0:16:02]} Be7 {[%emt 0:00:00] The position is equal.} 10. O-O-O {[%emt 0:03:56]} Nc5 {[%emt 0:00:00]} 11. Rhe1 {[%emt 0:01:16][%cal Od4f5] [#] Hoping for Nf5!} Qc7 {[%emt 0:00:00]} 12. f4 {[%emt 0:10:22] And now e5 would win.} h6 {[%emt 0:03:26]} 13. Bxf6 {[%emt 0:00:16]} Bxf6 {[%emt 0:00:34]} 14. Nf3 {[%emt 0:03:58]} b5 {[%emt 0:17:10]} 15. Qxd6 {[%emt 0:14:32]} Qxd6 {[%emt 0:01:01]} 16. Rxd6 {[%emt 0:00:03] [#]} Bxc3 $146 {[%emt 0:00:17]} (16... Bb7 {is interesting.} 17. f5 Ke7 18. Rb6 Rab8) ({Predecessor:} 16... Bb7 17. e5 Be7 18. Rd4 Rc8 19. Nd1 g5 20. fxg5 {½-½ (20) Eggleston,D (2372)-Radovanovic,J (2325) Coulsdon 2008}) 17. bxc3 {[%emt 0:00:02]} Bb7 {[%emt 0:00:33] Inhibits Rc6.} 18. e5 {[%emt 0:01:15]} Rc8 {[%emt 0:07:52]} (18... a5 $11) 19. Kb2 {[%emt 0:04:38] White is more active.} (19. Nd4 $14) 19... Ke7 {[%emt 0:06:15]} 20. Red1 {[%emt 0:04:33]} g6 {[%emt 0:11:32]} (20... Bxf3 $5 21. gxf3 Rb8 $11) 21. R1d4 {[%emt 0:10:23]} Bc6 {[%emt 0:02:22]} 22. Rd1 {[%emt 0:02:53]} ({White should play} 22. c4 $11) 22... Ne4 $1 $15 {[%emt 0:01:00]} 23. R6d4 {[%emt 0:00:56]} Nxc3 $1 {[%emt 0:01:03]} 24. Re1 {[%emt 0:05:03] Weighted Error Value: White=0.17 (very precise) /Black=0.11 (very precise)} (24. R1d2 $1 $15) 1/2-1/2

[Event "GER-ch Youth-U16 2022"]
[Site "Willingen"]
[Date "2022.06.08"]
[Round "6.7"]
[White "Stork, Christopher"]
[Black "Metzdorf, Matteo"]
[Result "1/2-1/2"]
[ECO "B43"]
[WhiteElo "1994"]
[BlackElo "2009"]
[Annotator "TA"]
[PlyCount "59"]
[EventDate "2022.06.05"]
[EventType "swiss"]
[EventRounds "9"]
[EventCountry "GER"]
[SourceTitle "playchess.com"]
[Source "ChessBase"]
[SourceQuality "1"]
[TimeControl "40/4500+30:900+30"]

{[%evp 9,59,14,43,8,21,10,29,-6,29,12,29,20,2,0,17,22,25,8,27,4,16,2,12,0,0,1,10,0,55,56,52,-3,-8,-81,-39,-34,-37,-48,-44,-41,-39,-28,18,4,14,-40,-32,-131,-51,-63,-57,-60]} 1. e4 {[%emt 0:00:00]} c5 {[%emt 0:00:00]} 2. Nf3 {[%emt 0:00:00]} e6 {[%emt 0:00:00]} 3. d4 {[%emt 0:00:00]} cxd4 {[%emt 0:00:00]} 4. Nxd4 {[%emt 0:00:00]} a6 {[%emt 0:00:00]} 5. Nc3 {[%emt 0:00:00]} Qc7 {[%emt 0:00:00]} 6. Qd3 {[%emt 0:00:00] B43: Sicilian: Kan Variation: 5 Nc3.} Nf6 {[%emt 0:01:57]} 7. Qg3 {[%emt 0:00:00]} d6 {[%emt 0:21:30]} 8. Bd3 {[%emt 0:00:00] White has an edge. has lost popularity (8.Be3).} Nbd7 {[%emt 0:00:49]} 9. O-O {[%emt 0:00:00]} g6 {[%emt 0:06:45] [#]} 10. Be3 $146 {[%emt 0:10:12]} ({Predecessor:} 10. Nb3 Bg7 11. Bd2 O-O 12. Qh4 Re8 13. f4 b5 14. a3 Bb7 15. Rae1 d5 16. exd5 Nxd5 {½-½ (65) Nordenbaek,J (2238)-Laursen,N (2247) Svendborg 2020}) 10... b5 {[%emt 0:08:58]} 11. f3 {[%emt 0:05:48]} b4 {[%emt 0:05:50]} 12. Nce2 {[%emt 0:03:07]} e5 {[%emt 0:03:23]} 13. Nb3 {[%emt 0:00:39]} d5 {[%emt 0:01:31]} 14. Bg5 {[%emt 0:02:26]} Bg7 {[%emt 0:02:25]} 15. exd5 {[%emt 0:02:52]} Nxd5 {[%emt 0:01:16]} 16. Rad1 {[%emt 0:01:47] [#] And now Be4 would win.} Bb7 {[%emt 0:01:28]} 17. Be4 {[%emt 0:02:02]} N7b6 {[%emt 0:01:06]} 18. Qf2 {[%emt 0:02:26]} Rc8 {[%emt 0:10:37]} (18... f5 $11) 19. c4 $14 {[%emt 0:04:17]} bxc3 {[%emt 0:05:58]} ({Weaker is} 19... Qxc4 20. Na5 Qc7 21. Nxb7 Qxb7 {[#]} 22. Rxd5 $1 {[%mdl 512]} Nxd5 23. Rd1 $16) 20. Nxc3 {[%emt 0:03:52]} (20. Rc1 $1 $14 O-O 21. Nxc3) 20... Nxc3 $11 {[%emt 0:01:14]} 21. bxc3 {[%emt 0:00:20]} (21. Rc1 $1 $11 Nba4 22. Bxb7 Qxb7 23. bxc3) 21... O-O {[%emt 0:01:22]} 22. Bxb7 {[%emt 0:02:44]} Qxb7 {[%emt 0:00:04]} 23. Nc5 {[%emt 0:00:58]} Qc6 {[%emt 0:05:53]} 24. Nxa6 {[%emt 0:03:40]} Na4 {[%emt 0:01:32]} 25. Nb4 {[%emt 0:00:42]} Qb5 {[%emt 0:02:34]} (25... Qe6 $142) 26. Nd5 $1 {[%emt 0:01:35] Strongly threatening Ne7+.} ({Reject} 26. Rd5 Qc4 27. Bd2 Rfd8 28. Rxd8+ Rxd8 $17) 26... Nxc3 {[%emt 0:00:11]} 27. Nxc3 {[%emt 0:05:01]} ({Better is} 27. Ne7+ $11 Kh8 28. Nxc8 Nxd1 29. Nd6 (29. Rxd1 Rxc8 30. Qd2 Ra8 $11) 29... Nxf2 30. Nxb5) 27... Rxc3 $15 {[%emt 0:00:02]} 28. Rd2 {[%emt 0:02:08]} ({White must play} 28. Qd2 $1 $15 Qc5+ 29. Qf2) 28... h6 {[%emt 0:00:55]} (28... e4 $1 $17 29. Be3 exf3 30. gxf3 Re8) 29. Be3 {[%emt 0:01:54]} Rfc8 {[%emt 0:00:52]} 30. Rfd1 {[%emt 0:01:59] Weighted Error Value: White=0.20 (precise) /Black=0.17 (very precise)} 1/2-1/2

[Event "GER-ch Youth-U16 2022"]
[Site "Willingen"]
[Date "2022.06.08"]
[Round "6.8"]
[White "Mimkes, Antal"]
[Black "Hommer, Jeremy"]
[Result "0-1"]
[ECO "C02"]
[WhiteElo "1696"]
[BlackElo "2152"]
[Annotator "TA"]
[PlyCount "92"]
[EventDate "2022.06.05"]
[EventType "swiss"]
[EventRounds "9"]
[EventCountry "GER"]
[SourceTitle "playchess.com"]
[Source "ChessBase"]
[SourceQuality "1"]
[TimeControl "40/4500+30:900+30"]

{[%evp 13,92,-8,0,-8,-8,-13,10,-21,-10,-8,9,13,21,0,18,14,16,19,15,17,21,-32,-21,-17,0,0,22,8,9,-22,-6,-14,-24,-20,-12,-90,-58,-48,-47,-47,-27,-29,-17,-15,0,-35,0,-47,0,-12,0,0,0,0,0,0,0,-77,-65,-442,-415,-579,-574,-626,-603,-789,-685,-695,0,-769,-741,-750,-704,-1238,-818,-29981,-29981,-29980,-29982,-29977,-6223]} 1. e4 {[%emt 0:00:00]} e6 {[%emt 0:00:00]} 2. d4 {[%emt 0:00:00]} d5 {[%emt 0:00:00]} 3. e5 {[%emt 0:00:00]} c5 {[%emt 0:00:00]} 4. c3 {[%emt 0:00:00]} Nc6 {[%emt 0:00:00]} 5. Nf3 {[%emt 0:00:00]} Bd7 {[%emt 0:00:00]} 6. a3 {[%emt 0:00:00]} c4 {[%emt 0:00:00]} 7. Be2 {[%emt 0:00:00]} Na5 {[%emt 0:00:00]} 8. Nbd2 {[%emt 0:00:00] C02: French: Advance Variation.} Qc7 {[%emt 0:00:00]} 9. O-O {[%emt 0:00:00]} h6 {[%emt 0:00:00]} 10. Ne1 {[%emt 0:00:00] [#] The position is equal.} O-O-O $146 {[%emt 0:00:00]} ({Predecessor:} 10... Ne7 11. g3 O-O-O 12. Ng2 f5 13. f4 g5 14. Rb1 Kb8 15. Qe1 Ba4 16. Bd1 Bxd1 17. Qxd1 {0-1 (58) Borcsok,L (2180)-Kecskes,G (2165) Hungary 1996}) 11. a4 {[%emt 0:00:00]} Ne7 {[%emt 0:00:52]} 12. b4 {[%emt 0:01:04]} cxb3 $1 {[%emt 0:00:59]} 13. Nxb3 {[%emt 0:00:12]} Nec6 {[%emt 0:14:13]} 14. Nd3 {[%emt 0:05:52]} Nxb3 {[%emt 0:02:33]} 15. Qxb3 {[%emt 0:00:43]} Na5 {[%emt 0:00:23]} 16. Qc2 {[%emt 0:01:59]} Kb8 {[%emt 0:09:08]} 17. Nb2 {[%emt 0:05:33]} ({Better is} 17. Ba3 $11) 17... Rc8 $15 {[%emt 0:09:27]} 18. Bd2 {[%emt 0:00:28]} Be7 {[%emt 0:11:40]} 19. Rfc1 {[%emt 0:01:42]} Rhd8 {[%emt 0:07:05]} 20. Qd1 {[%emt 0:07:23]} Bc6 {[%emt 0:02:07]} 21. c4 {[%emt 0:02:07]} Nxc4 {[%emt 0:00:33]} 22. Nxc4 {[%emt 0:00:27]} dxc4 {[%emt 0:00:06]} 23. Rxc4 {[%emt 0:00:55]} Qd7 {[%emt 0:01:34]} 24. Bb4 {[%emt 0:07:52]} (24. Rac1 $11) 24... Bd5 {[%emt 0:05:02]} 25. Rxc8+ {[%emt 0:04:01]} Rxc8 {[%emt 0:00:06]} 26. Bd2 {[%emt 0:04:56]} Bc4 {[%emt 0:07:21]} 27. Be3 $1 {[%emt 0:04:32]} Bxe2 {[%emt 0:00:29]} 28. Qxe2 {[%emt 0:00:06]} Bb4 {[%emt 0:02:13]} 29. h3 {[%emt 0:05:09]} a5 {[%emt 0:02:03]} (29... Bc3 $5 {[%cal Rc3a1]} 30. Ra3 Qd5 $11) 30. Ra2 {[%emt 0:02:55]} (30. Qf3 $11) 30... Qd5 {[%emt 0:01:37]} (30... g6 $15 {should be considered.}) 31. Rc2 {[%emt 0:04:28]} Rxc2 {[%emt 0:07:47]} (31... Rc7 {is more complex.} 32. Qd3 Kc8 33. Kh2 Rxc2 34. Qxc2+ Kd8) 32. Qxc2 $11 {[%emt 0:00:10][%mdl 4096] Endgame KQB-KQB} Qd7 {[%emt 0:00:14]} 33. Kh2 {[%emt 0:01:51]} h5 {[%emt 0:00:31]} 34. h4 {[%emt 0:01:44]} g6 {[%emt 0:00:06]} 35. Kg3 {[%emt 0:05:07]} (35. Qe4 $11) 35... b5 {[%emt 0:00:35][%cal Bb7b5,Bb5a4,Ba4a3][%mdl 32]} 36. Qd3 $2 {[%emt 0:02:10][%mdl 8192]} (36. axb5 $15 Qxb5 37. Qb1) 36... bxa4 $19 {[%emt 0:00:27]} 37. Qa6 {[%emt 0:01:26]} Qb7 {[%emt 0:00:59]} 38. Qc4 {[%emt 0:00:10]} a3 {[%emt 0:00:39] [#] White must now prevent ...Qd5.} 39. Bf4 {[%emt 0:04:53]} Ka7 {[%emt 0:03:07]} 40. Be3 {[%emt 0:00:59]} Kb8 {[%emt 0:00:04]} 41. Bf4 $1 {[%emt 0:15:11]} Qd5 {[%emt 0:00:00]} 42. Qxd5 {[%emt 0:00:00]} exd5 {[%emt 0:00:00]} 43. e6+ {[%emt 0:00:00]} Kb7 {[%emt 0:00:00] [#] ...a2 is the strong threat.} 44. exf7 {[%emt 0:00:00]} a2 {[%emt 0:00:10] Black mates.} 45. Bd2 {[%emt 0:00:00]} Bd6+ {[%emt 0:00:26]} 46. Bf4 {[%emt 0:00:00]} Bf8 {[%emt 0:00:11] Weighted Error Value: White=0.64/Black=0.28 (precise)} 0-1

[Event "GER-ch Youth-U16 2022"]
[Site "Willingen"]
[Date "2022.06.08"]
[Round "6.9"]
[White "Bungarten, Jona"]
[Black "Kort, Felix"]
[Result "0-1"]
[ECO "C54"]
[WhiteElo "1843"]
[BlackElo "1894"]
[Annotator "NA RC COMBH"]
[PlyCount "80"]
[EventDate "2022.06.05"]
[EventType "swiss"]
[EventRounds "9"]
[EventCountry "GER"]
[SourceTitle "playchess.com"]
[Source "ChessBase"]
[SourceQuality "1"]
[TimeControl "40/4500+30:900+30"]

1. e4 {[%emt 0:00:00]} e5 {[%emt 0:00:00]} 2. Nf3 {[%emt 0:00:00]} Nc6 {[%emt 0:00:00]} 3. Bc4 {[%emt 0:00:00]} Bc5 {[%emt 0:00:00]} 4. c3 {[%emt 0:00:00]} Nf6 {[%emt 0:00:00]} 5. d4 {[%emt 0:00:00]} exd4 {[%emt 0:00:00]} 6. cxd4 {[%emt 0:00:00]} Bb4+ {[%emt 0:00:00]} 7. Nc3 {[%emt 0:00:00]} Nxe4 {[%emt 0:00:00]} 8. O-O {[%emt 0:00:00]} Bxc3 {[%emt 0:00:00]} 9. d5 {[%emt 0:00:00]} Bf6 {[%emt 0:00:00]} 10. Re1 {[%emt 0:00:00]} Ne7 {[%emt 0:00:00]} 11. Rxe4 {[%emt 0:00:00]} d6 {[%emt 0:00:00]} 12. Bg5 {[%emt 0:00:00]} Bxg5 {[%emt 0:00:00]} 13. Nxg5 {[%emt 0:00:00]} h6 {[%emt 0:00:00]} 14. Qe2 {[%emt 0:00:00]} hxg5 {[%emt 0:00:00]} 15. Re1 {[%emt 0:00:00]} Be6 {[%emt 0:00:00]} 16. h3 {[%emt 0:00:00]} Rh6 {[%emt 0:05:32]} 17. dxe6 {[%emt 0:00:00]} f6 {[%emt 0:00:31]} 18. Rg4 {[%emt 0:00:00]} c6 {[%emt 0:14:05]} 19. b4 {[%emt 0:01:43]} d5 {[%emt 0:15:42]} 20. Bd3 {[%emt 0:00:12]} Qd6 {[%emt 0:05:39]} 21. a4 {[%emt 0:01:24]} O-O-O {[%emt 0:02:07]} 22. Qb2 {[%emt 0:03:30]} Kb8 {[%emt 0:04:51]} 23. Qd4 {[%emt 0:13:26]} Rdh8 {[%emt 0:08:56]} 24. f4 {[%emt 0:08:47]} Rh5 {[%emt 0:03:55]} 25. fxg5 {[%emt 0:12:10]} f5 {[%emt 0:00:36]} 26. Rf4 {[%emt 0:00:33]} Rxg5 {[%emt 0:00:28]} 27. h4 {[%emt 0:00:40]} Rgh5 {[%emt 0:03:42]} 28. a5 {[%emt 0:23:59]} R8h6 {[%emt 0:16:32]} 29. Ref1 {[%emt 0:10:52]} Qxe6 {[%emt 0:02:26]} 30. a6 {[%emt 0:00:29]} Qf6 {[%emt 0:01:28]} 31. Qe3 {[%emt 0:04:40]} Rxh4 {[%emt 0:02:05]} 32. Rxh4 {[%emt 0:00:45]} Rxh4 {[%emt 0:00:33]} 33. Re1 {[%emt 0:01:06]} Nc8 {[%emt 0:00:20]} 34. axb7 {[%emt 0:03:34]} Kxb7 {[%emt 0:00:06]} 35. Rd1 {[%emt 0:00:40]} Qh6 {[%emt 0:02:15]} 36. Ba6+ {[%emt 0:01:07]} Kxa6 {[%emt 0:00:27]} 37. Ra1+ {[%emt 0:00:07]} Kb7 {[%emt 0:00:10]} 38. Rxa7+ {[%emt 0:00:12]} Nxa7 {[%emt 0:00:15]} 39. Qe7+ {[%emt 0:00:06]} Ka6 {[%emt 0:00:43]} 40. b5+ {[%emt 0:00:09]} Nxb5 {[%emt 0:00:10]} 0-1